bitfinex-derivatives/quotes_SOLF0:USTF0_20250301
["timestamp","ask_amount","ask_price","bid_price","bid_amount"]
[1740827935365,6.4333,139.95,139.94,0.04795624]
[1740827935563,11.08,139.96,139.9,28.7058]
[1740827935762,11.08,139.96,139.9,25.6917]
[1740827936068,6.4351,139.91,139.9,14.2719]
[1740827936273,17.5151,139.91,139.9,14.2719]
[1740827937577,11.08,139.91,139.9,14.2719]
[1740827937971,0.05154958,139.92,139.9,20.7075]
[1740827938171,0.05154958,139.92,139.9,14.2719]
[1740827940869,6.48624958,139.92,139.9,14.2719]
[1740827941872,6.4351,139.91,139.9,14.2719]
[1740827943861,0.05154958,139.92,139.9,14.2719]
[1740827944175,0.05154958,139.92,139.9,20.7074]
[1740827944762,0.05154958,139.92,139.9,22.628]
[1740827945777,0.05154958,139.92,139.91,6.4351]
[1740827946566,11.22,139.97,139.9,19.9024]
[1740827946767,11.22,139.99,139.9,19.9024]
[1740827947072,17.6515,139.99,139.94,6.4334]
[1740827947274,17.6515,139.99,139.9,19.9024]
[1740827947471,11.22,139.99,139.9,19.9024]
[1740827947671,0.04807738,139.96,139.95,6.433]
[1740827948074,17.6313,140.0,139.95,6.433]
[1740827948275,0.05468832,139.97,139.94,6.4803601]
[1740827948670,0.05468832,139.97,139.94,0.0467601]
[1740827949881,0.05468832,139.97,139.94,6.4803601]
[1740827950080,0.05468832,139.97,139.94,0.0467601]
[1740827952378,6.4331,139.96,139.94,0.0467601]
[1740827952578,0.05468832,139.97,139.94,0.0467601]
[1740827952779,6.4328,139.96,139.94,0.0467601]
[1740827953088,0.05468832,139.97,139.94,0.0467601]
[1740827953487,6.4333,139.95,139.94,0.0467601]
[1740827954690,17.6933,139.95,139.94,0.0467601]
[1740827955484,11.26,139.95,139.94,0.0467601]
[1740827957298,17.6933,139.95,139.94,6.01e-05]
[1740827957690,21.2733,139.95,139.94,6.01e-05]
[1740827957990,22.53387126,139.95,139.94,6.01e-05]
[1740827958183,6.4351,139.91,139.9,6.01e-05]
[1740827958592,10.0151,139.91,139.9,6.01e-05]
[1740827958887,11.2754432,139.91,139.9,6.01e-05]
[1740827959092,6.4389,139.83,139.81,39.54179894]
[1740827959296,11.26,139.84,139.81,39.54179894]
[1740827959593,0.05347774,139.83,139.81,39.592337]
[1740827959789,0.05347774,139.83,139.81,46.032037]
[1740827959989,0.05347774,139.83,139.81,39.592337]
[1740827960888,0.05347774,139.83,139.82,6.4392]
[1740827961297,11.26,139.88,139.81,0.05053806]
[1740827961490,11.26,139.88,139.84,6.438]
[1740827961890,11.26,139.88,139.77,1.9091]
[1740827962086,11.26,139.88,139.84,6.4382]
[1740827962501,0.04514271,139.87,139.85,0.05398516]
[1740827962689,0.04514271,139.87,139.86,6.4374]
[1740827962994,11.26,139.88,139.85,0.05097382]
[1740827963199,11.30560551,139.88,139.85,0.05097382]
[1740827964000,11.30560551,139.88,139.85,6.48857382]
[1740827964195,11.30560551,139.88,139.85,0.05097382]
[1740827964602,11.30560551,139.88,139.86,6.4374]
[1740827965002,11.30560551,139.88,139.85,0.05097382]
[1740827965202,11.30560551,139.88,139.86,6.4374]
[1740827965706,11.30560551,139.88,139.85,0.05097382]
[1740827966499,6.4374,139.87,139.85,0.05097382]
[1740827967010,11.30560551,139.88,139.85,0.05097382]
[1740827967202,6.4373,139.87,139.85,0.05097382]
[1740827967402,11.30560551,139.88,139.85,0.05097382]
[1740827967598,14.88560551,139.88,139.78,1.865]
[1740827967794,6.4382,139.85,139.8,6.4399]
[1740827968002,6.4382,139.85,139.78,1.865]
[1740827968207,11.26,139.88,139.78,1.865]
[1740827968409,6.4389,139.83,139.78,8.3059]
[1740827968708,11.22,139.83,139.82,0.0527749]
[1740827968917,11.22,139.83,139.8,6.4398]
[1740827969115,11.22,139.83,139.81,0.04637041]
[1740827969621,11.22,139.83,139.81,6.48607041]
[1740827970412,0.05406919,139.84,139.81,0.04637041]
[1740827970620,11.24,139.88,139.81,0.04637041]
[1740827970820,11.24,139.9,139.81,0.04637041]
[1740827971020,6.436,139.89,139.78,13.105]
[1740827971526,6.436,139.89,139.86,6.4374]
[1740827971706,11.24,139.9,139.78,1.865]
[1740827971912,1.30800536,139.89,139.86,2.946e-05]
[1740827972113,6.4374,139.87,139.86,2.946e-05]
[1740827972421,1.26211597,139.87,139.77,1.9091]
[1740827972722,190.0,139.89,139.77,1.9091]
[1740827972916,6.62778483,139.88,139.77,1.9091]
[1740827973224,6.4401,139.81,139.77,1.9091]
[1740827973411,12.44,139.8,139.7,39.54179894]
[1740827973617,12.44,139.8,139.71,3.7426]
[1740827973820,0.05471109,139.76,139.74,0.04974353]
[1740827975122,12.56,139.75,139.74,0.04974353]
[1740827975318,19.0025,139.75,139.74,0.04974353]
[1740827975519,22.5825,139.75,139.74,4.353e-05]
[1740827975724,22.5825,139.75,139.68,1.852]
[1740827975725,12.56,139.75,139.68,1.852]
[1740827976826,0.04675232,139.73,139.7,0.05210663]
[1740827978030,190.0,139.83,139.7,0.05210663]
[1740827978328,12.66,139.81,139.68,1.852]
[1740827978518,19.0997,139.81,139.68,1.852]
[1740827978720,12.66,139.81,139.68,1.852]
[1740827979316,0.05255371,139.76,139.73,0.0518155]
[1740827979517,12.75255371,139.76,139.73,0.0518155]
[1740827982533,6.4425,139.75,139.73,0.0518155]
[1740827983827,12.75255371,139.76,139.73,0.0518155]
[1740827984435,6.4428,139.75,139.73,0.0518155]
[1740827984631,12.75255371,139.76,139.73,0.0518155]
[1740827985532,6.4429,139.74,139.73,1.55e-05]
[1740827986230,10.0229,139.74,139.73,1.55e-05]
[1740827986434,11.28265054,139.74,139.73,1.55e-05]
[1740827987628,11.28264878,139.74,139.73,1.55e-05]
[1740827987934,10.0229,139.74,139.73,1.55e-05]
[1740827988636,6.4429,139.74,139.73,1.55e-05]
[1740827988831,19.0229,139.74,139.73,1.55e-05]
[1740827989723,0.05255371,139.76,139.73,1.55e-05]
[1740827994534,0.05255371,139.76,139.74,6.4428]
[1740827995122,0.05255371,139.76,139.73,1.55e-05]
[1740827995332,0.05255371,139.76,139.73,6.4433155]
[1740827996036,0.05255371,139.76,139.74,6.4429]
[1740827996624,0.05255371,139.76,139.73,1.55e-05]
[1740827997239,0.05255371,139.76,139.73,6.4432155]
[1740827997934,0.05255371,139.76,139.73,1.55e-05]
[1740827998527,6.4429,139.74,139.73,1.55e-05]
[1740827999435,6.4426,139.75,139.73,1.55e-05]
[1740828000235,6.49475371,139.76,139.73,1.55e-05]
[1740828000541,12.56,139.79,139.73,1.55e-05]
[1740828000935,6.4415,139.77,139.74,6.4427]
[1740828001238,0.72888124,139.84,139.74,1.9727]
[1740828001438,12.44,139.8,139.74,1.9727]
[1740828001735,0.04926496,139.78,139.76,0.0489973]
[1740828005442,6.49066496,139.78,139.76,0.0489973]
[1740828005842,0.04926496,139.78,139.76,0.0489973]
[1740828008046,202.34,139.87,139.8,6.4401]
[1740828008238,12.34,139.87,139.8,6.4401]
[1740828008546,12.34,139.87,139.75,1.9943]
[1740828008930,0.1083,139.92,139.75,1.9943]
[1740828009248,15.70046196,139.93,139.8,0.05029408]
[1740828009443,15.70046196,139.93,139.81,12.32]
[1740828009645,15.70046196,139.93,139.88,6.4361]
[1740828009947,115.6386286,139.94,139.82,233.0855]
[1740828010245,122.0724286,139.94,139.82,233.0855]
[1740828010446,0.05485385,139.89,139.87,0.05356342]
[1740828010741,12.32,139.96,139.87,0.05356342]
[1740828010950,12.32,139.96,139.82,422.57613018]
[1740828011145,12.32,139.96,139.91,6.4347]
[1740828011945,0.1114,140.0,139.92,6.48006638]
[1740828011946,0.04602522,139.95,139.92,6.48006638]
[1740828012149,12.26,139.97,139.92,6.4343]
[1740828012346,12.26,139.97,139.92,6.48815032]
[1740828012646,0.05173995,139.95,139.92,6.48845032]
[1740828013047,0.05173995,139.95,139.92,0.05385032]
[1740828015254,0.05173995,139.95,139.92,6.48845032]
[1740828016057,0.05173995,139.95,139.94,6.4337]
[1740828016351,12.2,139.99,139.93,1.8859]
[1740828017341,0.04890414,139.97,139.94,6.4337]
[1740828017741,0.04890414,139.97,139.95,6.4329]
[1740828017938,0.04890414,139.97,139.94,1.87030671]
[1740828018348,12.2,139.99,139.94,1.87030671]
[1740828018549,0.1073,140.05,139.94,1.87030671]
[1740828018751,12.16,140.02,139.94,1.8227]
[1740828019550,12.16,140.02,139.97,0.04814625]
[1740828019551,0.05305809,139.99,139.97,0.04814625]
[1740828020743,6.4319,139.98,139.97,0.04814625]
[1740828022151,6.4333,139.95,139.92,228.92]
[1740828023256,6.48522693,139.95,139.92,228.96866829]
[1740828023755,0.05192693,139.95,139.92,228.96866829]
[1740828023956,0.05192693,139.95,139.93,6.4341]
[1740828024348,0.05192693,139.95,139.92,228.96866829]
[1740828025064,0.05192693,139.95,139.93,6.4339]
[1740828027059,0.05192693,139.95,139.94,6.4337]
[1740828027755,6.4317,139.99,139.94,6.4337]
[1740828027947,6.4317,139.99,139.95,6.4332]
[1740828028749,0.05463783,139.98,139.96,0.05402118]
[1740828029560,12.04,140.02,139.96,0.05402118]
[1740828029762,12.04,140.02,139.95,1.841]
[1740828030061,18.4702,140.02,139.97,6.4319]
[1740828030449,18.4702,140.02,139.95,1.841]
[1740828030852,0.05103192,140.01,139.98,0.05222233]
[1740828031056,0.05103192,140.01,139.98,6.48382233]
[1740828031360,0.05103192,140.01,139.98,0.05222233]
[1740828031561,0.05103192,140.01,139.98,6.48382233]
[1740828031762,0.05103192,140.01,139.98,0.05222233]
[1740828032058,0.05103192,140.01,139.98,6.48382233]
[1740828032461,0.05103192,140.01,139.98,0.05222233]
[1740828034056,6.48183192,140.01,139.98,0.05222233]
[1740828035063,0.05103192,140.01,139.98,0.05222233]
[1740828035965,6.431,140.0,139.98,0.05222233]
[1740828036152,0.05103192,140.01,139.98,0.05222233]
[1740828036560,0.05103192,140.01,139.91,2.0013]
[1740828036761,0.3667,140.01,139.91,2.0013]
[1740828036953,1.25790988,140.0,139.92,235.3546]
[1740828037154,0.3667,140.01,139.92,235.3546]
[1740828037357,0.3667,140.01,139.92,228.92]
[1740828037665,6.4322,139.98,139.93,6.4341]
[1740828037849,18.40207661,139.98,139.95,0.04854041]
[1740828038054,11.96987661,139.98,139.95,0.04854041]
[1740828039361,11.96987661,139.98,139.95,6.48164041]
[1740828039756,0.04987661,139.98,139.95,0.04854041]
[1740828039964,0.04987661,139.98,139.95,6.48164041]
[1740828040560,0.04987661,139.98,139.96,6.4328]
[1740828040856,0.04987661,139.98,139.95,0.04854041]
[1740828041065,0.04987661,139.98,139.97,6.4323]
[1740828041455,11.9,140.02,139.95,0.04854041]
[1740828041660,11.9,140.02,139.99,6.4311]
[1740828041965,6.4293,140.04,139.99,6.4311]
[1740828042165,18.3093,140.04,139.99,6.4311]
[1740828042362,18.3093,140.04,139.94,1.9255]
[1740828042760,0.05432617,140.0,139.98,0.0486012]
[1740828042959,0.05432617,140.0,139.98,6.4803012]
[1740828043561,0.05432617,140.0,139.99,6.4314]
[1740828043956,228.98,140.13,139.99,6.4314]
[1740828044156,13.09855592,140.08,140.0,6.4309]
[1740828044364,1.25854779,140.07,140.0,6.4309]
[1740828044672,1.25854779,140.07,139.94,1.9255]
[1740828044867,6.4298,140.03,139.94,1.9255]
[1740828045366,0.04888063,140.0,139.99,6.4313]
[1740828045666,11.82,140.03,139.93,1.9881]
[1740828045859,0.04938362,140.01,139.98,6.48548168]
[1740828046058,0.04938362,140.01,139.98,0.05388168]
[1740828046471,0.04938362,140.01,139.99,6.4312]
[1740828046662,0.04938362,140.01,139.98,0.05388168]
[1740828047579,0.04938362,140.01,139.99,6.4314]
[1740828047770,0.04938362,140.01,139.98,0.05388168]
[1740828047962,0.04938362,140.01,139.98,6.48548168]
[1740828048676,0.04938362,140.01,139.99,6.4314]
[1740828049373,0.04938362,140.01,139.99,6.4313]
[1740828051675,0.04938362,140.01,139.98,0.05388168]
[1740828052267,0.04938362,140.01,139.99,6.4314]
[1740828052965,0.04938362,140.01,139.98,0.05388168]
[1740828053168,0.04938362,140.01,140.0,6.431]
[1740828055086,6.4281,140.07,140.02,6.4297]
[1740828055271,6.4281,140.07,139.98,0.05388168]
[1740828055272,11.78,140.07,139.99,1.9209]
[1740828056375,0.04551756,140.04,140.02,0.04642677]
[1740828057977,0.04551756,140.04,140.03,6.4296]
[1740828059573,0.1065,140.15,140.02,0.04642677]
[1740828059771,12.97999395,140.14,140.06,6.4281]
[1740828059972,6.4263,140.11,140.06,6.4281]
[1740828060379,11.72,140.14,140.06,6.4281]
[1740828060579,1.26010706,140.13,140.01,228.7]
[1740828060870,0.03945381,140.11,140.01,228.7]
[1740828061070,6.4285,140.06,140.01,235.1304]
[1740828061276,11.7,140.09,140.01,228.7]
[1740828062077,0.05213205,140.06,140.04,0.04696536]
[1740828062274,0.05213205,140.06,140.05,6.4287]
[1740828065181,6.4263,140.11,140.04,0.04696536]
[1740828065479,11.64,140.1,140.07,6.4276]
[1740828066483,11.67382176,140.1,140.07,6.477808]
[1740828067582,0.03382176,140.1,140.09,6.4268]
[1740828070186,0.03382176,140.1,140.07,0.050208]
[1740828072680,0.03382176,140.1,140.08,6.4269]
[1740828073088,0.03382176,140.1,140.07,0.050208]
[1740828073386,0.03382176,140.1,140.08,6.4273]
[1740828073590,0.03382176,140.1,140.07,0.050208]
[1740828073777,0.01382176,140.1,140.09,6.4268]
[1740828074272,0.01382176,140.1,140.08,3.7843]
[1740828078990,0.01382176,140.1,140.09,6.4268]
[1740828079194,0.01382176,140.1,140.08,3.7843]
[1740828079582,0.01382176,140.1,140.09,6.4268]
[1740828079785,0.01382176,140.1,140.08,3.7843]
[1740828081192,6.44032176,140.1,140.08,3.7843]
[1740828081592,0.01382176,140.1,140.08,3.7843]
[1740828083890,6.4268,140.09,140.08,3.7843]
[1740828084191,0.01382176,140.1,140.07,0.050208]
[1740828084388,6.4271,140.09,140.07,0.050208]
[1740828085496,0.01382176,140.1,140.07,0.050208]
[1740828085795,6.44022176,140.1,140.07,0.050208]
[1740828086197,0.01382176,140.1,140.07,6.477608]
[1740828086588,0.01382176,140.1,140.07,0.050208]
[1740828086796,0.01382176,140.1,140.08,6.4272]
[1740828087895,0.01382176,140.1,140.07,0.050208]
[1740828088297,6.44052176,140.1,140.07,0.050208]
[1740828088598,0.01382176,140.1,140.07,0.050208]
[1740828088997,11.46,140.17,140.07,0.050208]
[1740828089194,11.46,140.17,140.06,1.9417]
[1740828089393,11.46,140.17,140.09,6.4268]
[1740828089599,1.26335992,140.16,140.06,1.9417]
[1740828090001,6.4253,140.13,140.1,0.04800635]
[1740828090691,6.4244,140.15,140.1,0.04800635]
[1740828091089,11.46,140.17,140.1,0.04800635]
[1740828091302,1.26373811,140.16,140.1,0.04800635]
[1740828091504,6.4242,140.15,140.1,6.47410635]
[1740828091900,6.4242,140.15,140.1,0.04800635]
[1740828092201,11.46,140.17,140.1,0.04800635]
[1740828093390,6.4241,140.15,140.1,6.47440635]
[1740828093596,11.46,140.17,140.1,6.47440635]
[1740828093801,11.46,140.17,140.1,0.04800635]
[1740828094006,6.4249,140.14,140.1,0.04800635]
[1740828094206,11.46,140.17,140.1,0.04800635]
[1740828094406,1.26480888,140.16,140.1,0.04800635]
[1740828094603,6.4253,140.13,140.1,0.04800635]
[1740828095113,11.46,140.17,140.1,0.04800635]
[1740828095296,1.2649366,140.16,140.1,0.04800635]
[1740828096406,6.4253,140.13,140.1,0.04800635]
[1740828097206,11.46,140.17,140.1,0.04800635]
[1740828097401,1.26507318,140.16,140.1,0.04800635]
[1740828097810,6.4253,140.13,140.1,0.04800635]
[1740828098316,11.46,140.17,140.1,0.04800635]
[1740828098521,1.26516617,140.16,140.1,0.04800635]
[1740828098808,1.26516617,140.16,140.1,0.00800635]
[1740828099900,0.04,140.14,140.1,0.00800635]
[1740828102109,0.04,140.14,140.1,6.43400635]
[1740828102817,0.04,140.14,140.12,6.4253]
[1740828103316,0.04,140.14,140.13,6.425]
[1740828103614,11.36,140.18,140.11,3.8664]
[1740828103814,11.36,140.18,140.12,1.8211]
[1740828104711,11.36,140.18,140.14,0.05284391]
[1740828105517,15.74159398,140.22,140.14,0.05284391]
[1740828105716,15.74159398,140.22,140.19,6.4222]
[1740828106214,115.6386286,140.23,140.2,6.4217]
[1740828106710,115.6386286,140.23,140.19,0.04924594]
[1740828106905,6.4203,140.24,140.19,6.47134594]
[1740828107311,35.79351927,140.26,140.19,0.04924594]
[1740828107511,6.4196,140.25,140.21,6.4213]
[1740828107717,35.79351927,140.26,140.21,6.4213]
[1740828107904,35.79351927,140.26,140.22,0.04707751]
[1740828108101,42.21291927,140.26,140.22,0.04707751]
[1740828108306,35.79351927,140.26,140.22,0.04707751]
[1740828108505,6.42,140.24,140.22,0.04707751]
[1740828108712,35.79351927,140.26,140.22,7.751e-05]
[1740828108914,35.79351927,140.26,140.17,3.7407]
[1740828108915,1.26489713,140.25,140.16,234.9436]
[1740828109216,6.4213,140.22,140.16,228.52]
[1740828109917,0.04707751,140.2,140.18,0.05032208]
[1740828110905,0.04707751,140.2,140.18,6.47302208]
[1740828111507,0.04707751,140.2,140.18,0.05032208]
[1740828113204,0.04707751,140.2,140.18,6.47302208]
[1740828113709,0.04707751,140.2,140.18,0.05032208]
[1740828115125,6.46917751,140.2,140.18,0.05032208]
[1740828115725,6.4222,140.19,140.18,0.05032208]
[1740828116319,0.04707751,140.2,140.18,0.05032208]
[1740828116529,6.46907751,140.2,140.18,0.05032208]
[1740828117525,0.04707751,140.2,140.18,0.05032208]
[1740828118509,0.04707751,140.2,140.19,6.4222]
[1740828123224,0.04707751,140.2,140.18,0.05032208]
[1740828123431,17.6422,140.19,140.18,0.05032208]
[1740828124625,11.22,140.19,140.18,0.05032208]
[1740828125616,17.6422,140.19,140.18,0.05032208]
[1740828126319,11.22,140.19,140.1,5.6375]
[1740828127621,0.04822313,140.16,140.13,0.04886317]
[1740828128520,0.04822313,140.16,140.14,6.4244]
[1740828128832,0.04822313,140.16,140.13,0.04886317]
[1740828129128,0.04822313,140.16,140.14,6.4243]
[1740828129325,0.04822313,140.16,140.13,0.04886317]
[1740828129524,1.26502426,140.28,140.13,0.04886317]
[1740828129724,11.18,140.27,140.11,11.18]
[1740828129922,6.4207,140.23,140.11,11.18]
[1740828130117,11.18,140.27,140.11,11.18]
[1740828130419,1.26523497,140.26,140.11,11.18]
[1740828130621,0.04680053,140.2,140.18,0.04817355]
[1740828130819,1.26523497,140.26,140.18,6.47057355]
[1740828131019,0.04917646,140.2,140.18,0.04817355]
[1740828131219,11.18,140.27,140.19,6.4222]
[1740828131416,1.26563639,140.26,140.19,6.4222]
[1740828131621,0.04917646,140.2,140.19,6.4222]
[1740828131816,1.26567568,140.26,140.21,0.04766416]
[1740828132016,0.04611302,140.25,140.22,0.05377939]
[1740828132228,17.5794,140.26,140.18,228.42]
[1740828132426,0.04917646,140.25,140.22,0.04813078]
[1740828133219,1.26583768,140.33,140.22,0.04813078]
[1740828133432,11.16,140.32,140.22,0.04813078]
[1740828133733,11.16,140.32,140.21,11.14]
[1740828133929,6.4169,140.31,140.25,6.4192]
[1740828134321,6.4169,140.31,140.21,11.14]
[1740828134521,6.4169,140.31,140.27,0.04763503]
[1740828136229,17.5564,140.32,140.27,0.04763503]
[1740828137234,17.5564,140.32,140.27,6.46623503]
[1740828138330,11.14,140.32,140.27,0.04763503]
[1740828138537,6.4168,140.31,140.27,0.04763503]
[1740828139037,11.14,140.32,140.27,0.04763503]
[1740828139429,6.4178,140.29,140.27,0.04763503]
[1740828140236,6.4174,140.3,140.27,0.04763503]
[1740828140835,11.14,140.32,140.27,0.04763503]
[1740828142335,15.76023319,140.41,140.28,228.3]
[1740828142536,15.76023319,140.41,140.29,5.7973]
[1740828142730,151.39490081,140.42,140.29,5.7973]
[1740828142924,151.39490081,140.42,140.33,0.04842935]
[1740828143431,6.4135,140.39,140.36,0.04832832]
[1740828143936,6.4127,140.4,140.36,0.04832832]
[1740828144133,151.39490081,140.42,140.36,0.04832832]
[1740828144539,140.23490081,140.42,140.36,0.04832832]
[1740828144741,151.37490081,140.42,140.36,0.04832832]
[1740828144944,6.4123,140.41,140.36,0.04832832]
[1740828145145,11.16,140.43,140.3,11.16]
[1740828145348,17.5716,140.43,140.37,6.46493922]
[1740828145953,6.4121,140.42,140.37,0.05123922]
[1740828147251,6.4123,140.41,140.37,0.05123922]
[1740828147857,6.4118,140.42,140.37,0.05123922]
[1740828148050,11.16,140.43,140.37,0.05123922]
[1740828148249,11.16,140.43,140.37,6.46493922]
[1740828148450,11.18,140.43,140.37,6.46493922]
[1740828148843,6.4118,140.42,140.37,6.46493922]
[1740828149446,11.2,140.48,140.37,0.05123922]
[1740828149745,11.2,140.48,140.38,3.9582]
[1740828149957,6.4104,140.45,140.41,0.04706192]
[1740828150162,11.2,140.48,140.41,0.04706192]
[1740828150759,6.4112,140.44,140.41,0.04706192]
[1740828150960,11.2,140.43,140.41,0.04706192]
[1740828151162,6.4117,140.42,140.41,0.04706192]
[1740828151755,17.6116,140.43,140.41,0.04706192]
[1740828153152,11.16,140.42,140.41,0.04706192]
[1740828154963,11.16,140.42,140.32,3.8136]
[1740828155349,6.4122,140.41,140.35,6.4149]
[1740828156154,0.04567295,140.39,140.37,0.04493771]
[1740828156759,0.04567295,140.39,140.32,3.8136]
[1740828157765,0.04567295,140.39,140.34,0.05016057]
[1740828158662,0.04567295,140.39,140.38,6.4136]
[1740828158968,11.12,140.43,140.35,1.9566]
[1740828159273,11.12,140.43,140.41,6.4118]
[1740828160052,0.04493771,140.43,140.41,6.4609099]
[1740828160265,0.04493771,140.43,140.41,0.0491099]
[1740828162556,6.45653771,140.43,140.41,0.0491099]
[1740828163367,0.04493771,140.43,140.41,0.0491099]
[1740828164170,11.12,140.48,140.41,0.0491099]
[1740828164463,11.12,140.48,140.45,6.41]
[1740828164664,11.12,140.48,140.39,3.9275]
[1740828165459,17.5292,140.48,140.43,6.411]
[1740828165659,11.12,140.48,140.42,0.0547612]
[1740828166170,11.12,140.48,140.46,6.4099]
[1740828166359,0.1438,140.52,140.39,3.9275]
[1740828166564,18.79451698,140.51,140.46,0.05375476]
[1740828166765,11.12,140.51,140.46,6.46335476]
[1740828167464,11.12,140.51,140.46,0.05375476]
[1740828167970,6.4084,140.5,140.46,0.05375476]
[1740828168173,11.12,140.51,140.46,0.05375476]
[1740828168580,17.5279,140.51,140.46,6.46345476]
[1740828168873,11.12,140.5,140.46,0.05375476]
[1740828169066,17.5281,140.5,140.46,0.05375476]
[1740828169372,1.26562837,140.49,140.46,0.05375476]
[1740828169672,6.4099,140.46,140.41,6.412]
[1740828169867,6.4099,140.46,140.39,3.9275]
[1740828170471,0.1438,140.52,140.39,3.9275]
[1740828170472,6.4111,140.44,140.39,3.9275]
[1740828170769,0.05338601,140.43,140.4,0.05078861]
[1740828171172,0.05338601,140.43,140.4,6.46328861]
[1740828171385,0.05338601,140.43,140.4,0.05078861]
[1740828171670,0.05338601,140.43,140.41,6.4119]
[1740828172467,0.05338601,140.43,140.4,0.05078861]
[1740828175565,6.4122,140.41,140.4,0.05078861]
[1740828175768,3.61338601,140.43,140.3,237.9635481]
[1740828175966,11.12,140.45,140.3,241.7048481]
[1740828175967,1.26540402,140.42,140.3,241.7048481]
[1740828176166,6.4139,140.38,140.3,241.7048481]
[1740828176367,11.12,140.37,140.3,241.7048481]
[1740828176573,11.12,140.37,140.33,6.4155]
[1740828177070,0.04815529,140.36,140.34,0.04532196]
[1740828180470,6.46275529,140.36,140.34,0.04532196]
[1740828181077,6.46275529,140.36,140.3,231.7813]
[1740828181078,6.4154,140.34,140.3,228.04]
[1740828181576,0.04815529,140.36,140.3,228.04]
[1740828182273,6.46275529,140.36,140.32,0.05334031]
[1740828183078,6.4149,140.35,140.32,0.05334031]
[1740828183665,0.04815529,140.36,140.32,0.05334031]
[1740828184070,6.4173,140.3,140.26,33.51295084]
[1740828184274,11.12,140.31,140.26,1.9214]
[1740828184778,11.12,140.31,140.24,9.9235481]
[1740828184979,6.4178,140.29,140.24,16.3432481]
[1740828185281,6.46433556,140.29,140.26,0.04670726]
[1740828185780,0.04653556,140.29,140.26,0.04670726]
[1740828186179,11.12,140.34,140.26,0.04670726]
[1740828186884,6.4159,140.33,140.28,6.4179]
[1740828187477,0.05028023,140.32,140.29,0.04954738]
[1740828188183,6.46658023,140.32,140.29,0.04954738]
[1740828188386,0.05028023,140.32,140.29,0.04954738]
[1740828189188,6.4172,140.3,140.29,0.04954738]
[1740828189485,6.4172,140.3,140.29,0.01224738]
[1740828190284,6.4169,140.31,140.29,0.01224738]
[1740828190879,6.4172,140.3,140.29,0.01224738]
[1740828193482,6.4169,140.31,140.29,0.01224738]
[1740828195276,0.05028023,140.32,140.29,0.01224738]
[1740828195474,6.4172,140.3,140.29,0.01224738]
[1740828196084,6.4191,140.26,140.23,229.9649]
[1740828196287,11.12,140.27,140.23,1.8449]
[1740828196594,11.12,140.26,140.16,228.22]
[1740828196784,6.4214,140.21,140.16,228.22]
[1740828197176,6.4747654,140.2,140.17,0.04707573]
[1740828197377,0.0529654,140.2,140.17,0.04707573]
[1740828197684,0.05104647,140.2,140.17,0.05281448]
[1740828197872,6.423,140.18,140.17,0.05281448]
[1740828199389,6.423,140.18,140.17,1.448e-05]
[1740828203278,0.05104647,140.2,140.17,1.448e-05]
[1740828204388,11.12,140.21,140.17,1.448e-05]
[1740828204583,11.14,140.25,140.17,1.448e-05]
[1740828204778,11.14,140.25,140.15,11.14]
[1740828204983,17.5598,140.25,140.19,6.4219]
[1740828205186,17.5598,140.25,140.2,1.8697]
[1740828205386,11.14,140.25,140.2,1.8697]
[1740828205793,0.04664287,140.24,140.21,0.04808892]
[1740828206092,6.4207,140.23,140.21,0.04808892]
[1740828206594,6.46694287,140.24,140.21,0.04808892]
[1740828206792,0.04664287,140.24,140.21,0.04808892]
[1740828207192,0.4634,140.32,140.21,0.04808892]
[1740828207389,12.40574402,140.31,140.2,1.8697]
[1740828207588,11.14,140.31,140.2,13.0097]
[1740828208398,0.05257818,140.27,140.24,0.05486059]
[1740828208591,11.14,140.31,140.24,0.05486059]
[1740828208989,0.0854,140.41,140.27,6.4185]
[1740828209194,12.42630402,140.4,140.28,3.886]
[1740828209394,11.16,140.4,140.28,3.886]
[1740828209591,1.26625738,140.39,140.28,3.886]
[1740828209794,0.04707577,140.35,140.33,0.0481777]
[1740828209993,11.14,140.34,140.33,0.0481777]
[1740828210801,17.5554,140.34,140.33,0.0481777]
[1740828211000,21.1154,140.34,140.28,1.986]
[1740828211194,1.26602332,140.33,140.21,1.8548]